[Event "*** Qualifier 1: Titled Tuesday 3|2 Blitz"]
[Site "Chess.com"]
[Date "2017.04.04"]
[Round "5"]
[White "DavidMarkosyan"]
[Black "Tesla37"]
[Result "0-1"]
[WhiteElo "2351"]
[BlackElo "2571"]
[TimeControl "180+2"]
[EndTime "14:12:30 PDT"]
[Termination "Tesla37 won by resignation"]

1. e4 {[%clk 0:03:02]} 1... c5 {[%clk 0:03:00.4]} 2. Nf3 {[%clk 0:03:02.4]} 2...
e6 {[%clk 0:03:01]} 3. d3 {[%clk 0:03:03.1]} 3... Nc6 {[%clk 0:03:00.3]} 4. g3
{[%clk 0:03:03.6]} 4... Nf6 {[%clk 0:02:59.4]} 5. Bg2 {[%clk 0:03:04.7]} 5... g6
{[%clk 0:03:00.6]} 6. O-O {[%clk 0:03:05.5]} 6... Bg7 {[%clk 0:03:01.6]} 7. Re1
{[%clk 0:03:06.9]} 7... d5 {[%clk 0:03:00.5]} 8. Nbd2 {[%clk 0:03:07.3]} 8...
O-O {[%clk 0:03:00.8]} 9. c3 {[%clk 0:03:08]} 9... b6 {[%clk 0:02:58.5]} 10. e5
{[%clk 0:03:07.6]} 10... Nd7 {[%clk 0:02:57.2]} 11. d4 {[%clk 0:03:07.4]} 11...
Ba6 {[%clk 0:02:57.8]} 12. a3 {[%clk 0:03:00.7]} 12... Qc7 {[%clk 0:02:55.5]}
13. Nf1 {[%clk 0:02:59.3]} 13... Rac8 {[%clk 0:02:55.3]} 14. Ne3 {[%clk
0:02:56.8]} 14... Rfe8 {[%clk 0:02:54.3]} 15. h4 {[%clk 0:02:56.8]} 15... cxd4
{[%clk 0:02:53.1]} 16. cxd4 {[%clk 0:02:55.8]} 16... f6 {[%clk 0:02:54.7]} 17.
exf6 {[%clk 0:02:54.2]} 17... Nxf6 {[%clk 0:02:55.1]} 18. b4 {[%clk 0:02:49.6]}
18... Ne4 {[%clk 0:02:49.9]} 19. Bb2 {[%clk 0:02:46.6]} 19... Rf8 {[%clk
0:02:46]} 20. Rc1 {[%clk 0:02:42.1]} 20... Qd6 {[%clk 0:02:38]} 21. Ng4 {[%clk
0:02:39.3]} 21... Ne7 {[%clk 0:02:04.6]} 22. Rxc8 {[%clk 0:02:28.8]} 22... Rxc8
{[%clk 0:02:03.3]} 23. Ng5 {[%clk 0:02:29.2]} 23... Nxg5 {[%clk 0:02:00.5]} 24.
hxg5 {[%clk 0:02:29.9]} 24... Nf5 {[%clk 0:02:00.6]} 25. Ne5 {[%clk 0:02:23.6]}
25... Qe7 {[%clk 0:01:54.8]} 26. Qd2 {[%clk 0:02:19.7]} 26... Nd6 {[%clk
0:01:53.7]} 27. Rc1 {[%clk 0:02:01.5]} 27... Rxc1+ {[%clk 0:01:41.9]} 28. Qxc1
{[%clk 0:02:00.8]} 28... Nc4 {[%clk 0:01:41.5]} 29. Nxc4 {[%clk 0:01:54.4]}
29... Bxc4 {[%clk 0:01:41.7]} 30. Qf4 {[%clk 0:01:53.7]} 30... Bf8 {[%clk
0:01:39.5]} 31. Bh3 {[%clk 0:01:49]} 31... Bb5 {[%clk 0:01:33.1]} 32. Qe5 {[%clk
0:01:47.6]} 32... Bd7 {[%clk 0:01:31.4]} 33. f4 {[%clk 0:01:47.4]} 33... Kf7
{[%clk 0:01:26.6]} 34. Qh8 {[%clk 0:01:33.8]} 34... Ke8 {[%clk 0:01:25.7]} 35.
Qe5 {[%clk 0:01:30.2]} 35... Qd6 {[%clk 0:01:24.5]} 36. Qxd6 {[%clk 0:01:28.8]}
36... Bxd6 {[%clk 0:01:24.6]} 37. Kf2 {[%clk 0:01:30.4]} 37... Ke7 {[%clk
0:01:20.1]} 38. Bf1 {[%clk 0:01:30.9]} 38... Ba4 {[%clk 0:01:17.3]} 39. Bd3
{[%clk 0:01:31.1]} 39... Kd7 {[%clk 0:01:17.5]} 40. Kf3 {[%clk 0:01:27.5]} 40...
Bd1+ {[%clk 0:01:17.8]} 41. Ke3 {[%clk 0:01:23.6]} 41... Kc6 {[%clk 0:01:15.3]}
42. Bc3 {[%clk 0:01:20.9]} 42... Ba4 {[%clk 0:01:13.7]} 43. g4 {[%clk
0:01:20.9]} 43... Bd1 {[%clk 0:01:11.7]} 44. f5 {[%clk 0:01:20.1]} 44... Bxg4
{[%clk 0:00:58.6]} 45. fxg6 {[%clk 0:01:19.4]} 45... hxg6 {[%clk 0:00:59.6]} 46.
Bxg6 {[%clk 0:01:20.1]} 46... Kd7 {[%clk 0:01:01.2]} 47. Bd3 {[%clk 0:01:16.2]}
47... Ke7 {[%clk 0:01:02.2]} 48. a4 {[%clk 0:01:13.4]} 48... Kf7 {[%clk
0:01:02.5]} 49. b5 {[%clk 0:01:11.6]} 49... Bf5 {[%clk 0:01:02.9]} 50. a5 {[%clk
0:01:06.8]} 50... Kg6 {[%clk 0:00:58.5]} 51. a6 {[%clk 0:01:04.6]} 51... Kxg5
{[%clk 0:00:59.1]} 52. Bd2 {[%clk 0:01:01.2]} 52... Bf4+ {[%clk 0:00:58.2]} 53.
Ke2 {[%clk 0:01:01.5]} 53... Bxd3+ {[%clk 0:00:59]} 54. Kxd3 {[%clk 0:00:58.8]}
54... Bxd2 {[%clk 0:01:00]} 55. Kxd2 {[%clk 0:01:00.7]} 55... Kf4 {[%clk
0:01:01.3]} 56. Kd3 {[%clk 0:01:00.7]} 56... Kf3 {[%clk 0:01:02.5]} 57. Kd2
{[%clk 0:01:01.6]} 57... Ke4 {[%clk 0:01:03.6]} 58. Kc3 {[%clk 0:01:03.3]} 58...
Ke3 {[%clk 0:01:05.1]} 0-1

[Event "*** Qualifier 1: Titled Tuesday 3|2 Blitz"]
[Site "Chess.com"]
[Date "2017.04.04"]
[Round "5"]
[White "aNaartjieZA"]
[Black "twitchTriniCupid"]
[Result "0-1"]
[WhiteElo "2279"]
[BlackElo "2157"]
[TimeControl "180+2"]
[EndTime "14:12:44 PDT"]
[Termination "twitchTriniCupid won by resignation"]

1. e4 {[%clk 0:03:02]} 1... c6 {[%clk 0:02:58.8]} 2. d3 {[%clk 0:03:02.4]} 2...
d5 {[%clk 0:03:00.7]} 3. Nd2 {[%clk 0:03:04]} 3... e6 {[%clk 0:03:00.9]} 4. Ngf3
{[%clk 0:03:05]} 4... g6 {[%clk 0:03:01.3]} 5. g3 {[%clk 0:03:06]} 5... Bg7
{[%clk 0:03:02.7]} 6. Bg2 {[%clk 0:03:07.6]} 6... Nf6 {[%clk 0:03:03.2]} 7. O-O
{[%clk 0:03:08.9]} 7... O-O {[%clk 0:03:04]} 8. e5 {[%clk 0:03:07.6]} 8... Nfd7
{[%clk 0:03:02.9]} 9. Re1 {[%clk 0:03:08.5]} 9... c5 {[%clk 0:03:03.8]} 10. Nf1
{[%clk 0:03:08.6]} 10... h6 {[%clk 0:02:59.6]} 11. h4 {[%clk 0:03:09.2]} 11...
Qc7 {[%clk 0:02:58.4]} 12. Bf4 {[%clk 0:03:09.9]} 12... Nc6 {[%clk 0:02:57.5]}
13. Qe2 {[%clk 0:03:10.5]} 13... Nd4 {[%clk 0:02:50.7]} 14. Nxd4 {[%clk
0:03:10.7]} 14... cxd4 {[%clk 0:02:51.6]} 15. Nh2 {[%clk 0:03:09.7]} 15... Kh7
{[%clk 0:02:50.3]} 16. Ng4 {[%clk 0:03:08.3]} 16... b5 {[%clk 0:02:41.9]} 17.
Qd2 {[%clk 0:02:59.9]} 17... h5 {[%clk 0:02:42.4]} 18. Nf6+ {[%clk 0:03:00.2]}
18... Kh8 {[%clk 0:02:35.3]} 19. g4 {[%clk 0:02:35.9]} 19... hxg4 {[%clk
0:02:26.6]} 20. Nxg4 {[%clk 0:02:32.1]} 20... Bb7 {[%clk 0:02:19.8]} 21. Bh6
{[%clk 0:02:27.9]} 21... Rg8 {[%clk 0:02:20.8]} 22. Bxg7+ {[%clk 0:02:22.6]}
22... Rxg7 {[%clk 0:02:21.7]} 23. Qg5 {[%clk 0:02:15.5]} 23... Qd8 {[%clk
0:01:58.4]} 24. Nf6 {[%clk 0:02:05.2]} 24... Nxf6 {[%clk 0:01:58]} 25. exf6
{[%clk 0:02:06]} 25... Rh7 {[%clk 0:01:59.1]} 26. Bf3 {[%clk 0:02:06.2]} 26...
Rc8 {[%clk 0:01:47.7]} 27. Rac1 {[%clk 0:02:06]} 27... Qd6 {[%clk 0:01:47.4]}
28. Kg2 {[%clk 0:02:02.4]} 28... b4 {[%clk 0:01:39.7]} 29. Rh1 {[%clk
0:01:59.3]} 29... e5 {[%clk 0:01:37.9]} 30. Rce1 {[%clk 0:01:56.6]} 30... Re8
{[%clk 0:01:37]} 31. h5 {[%clk 0:01:42.9]} 31... Rg8 {[%clk 0:01:36.8]} 32. h6
{[%clk 0:01:38.9]} 32... Re8 {[%clk 0:01:34]} 33. Re2 {[%clk 0:01:39.6]} 33...
e4 {[%clk 0:01:29.8]} 34. Bg4 {[%clk 0:01:40]} 34... Re5 {[%clk 0:01:22]} 35.
Qf4 {[%clk 0:01:35.5]} 35... g5 {[%clk 0:01:23.1]} 36. Qg3 {[%clk 0:01:33.7]}
36... Qxf6 {[%clk 0:01:23.3]} 37. Qh3 {[%clk 0:01:29.1]} 37... Qf4 {[%clk
0:01:07.2]} 38. Bh5 {[%clk 0:01:18.5]} 38... Rxh6 {[%clk 0:01:04.1]} 39. Qd7
{[%clk 0:01:17.6]} 39... g4 {[%clk 0:00:48.8]} 40. Bxg4 {[%clk 0:00:50.7]} 40...
Rxh1 {[%clk 0:00:43.3]} 41. Kxh1 {[%clk 0:00:51.7]} 41... Rg5 {[%clk 0:00:28.7]}
42. f3 {[%clk 0:00:49.1]} 42... exf3 {[%clk 0:00:21.5]} 43. Rh2+ {[%clk
0:00:42.9]} 43... Kg7 {[%clk 0:00:21.9]} 44. Rh4 {[%clk 0:00:41.2]} 44... f2
{[%clk 0:00:21.2]} 0-1

[Event "*** Qualifier 1: Titled Tuesday 3|2 Blitz"]
[Site "Chess.com"]
[Date "2017.04.04"]
[Round "5"]
[White "MITerryble"]
[Black "poummba"]
[Result "1-0"]
[WhiteElo "2736"]
[BlackElo "2388"]
[TimeControl "180+2"]
[EndTime "14:12:53 PDT"]
[Termination "MITerryble won on time"]

1. d4 {[%clk 0:03:02]} 1... g6 {[%clk 0:03:00.7]} 2. Nf3 {[%clk 0:03:02.3]} 2...
Bg7 {[%clk 0:03:02]} 3. e4 {[%clk 0:03:03.5]} 3... d6 {[%clk 0:03:02.6]} 4. Bc4
{[%clk 0:03:04.3]} 4... Nf6 {[%clk 0:03:04]} 5. Qe2 {[%clk 0:03:02.9]} 5... O-O
{[%clk 0:03:05.2]} 6. O-O {[%clk 0:03:04]} 6... Bg4 {[%clk 0:03:02.7]} 7. Nbd2
{[%clk 0:03:03.5]} 7... Nc6 {[%clk 0:03:03]} 8. c3 {[%clk 0:03:03.8]} 8... e5
{[%clk 0:02:58]} 9. d5 {[%clk 0:02:59.8]} 9... Ne7 {[%clk 0:02:54.6]} 10. h3
{[%clk 0:03:00.1]} 10... Bd7 {[%clk 0:02:43.8]} 11. Bb5 {[%clk 0:02:47]} 11...
Nh5 {[%clk 0:02:31.8]} 12. Bxd7 {[%clk 0:02:43.2]} 12... Nf4 {[%clk 0:02:32.7]}
13. Qd1 {[%clk 0:02:43.7]} 13... Qxd7 {[%clk 0:02:33.7]} 14. Nc4 {[%clk
0:02:37.5]} 14... f5 {[%clk 0:02:31.6]} 15. Bxf4 {[%clk 0:02:31.7]} 15... exf4
{[%clk 0:02:32.6]} 16. Ncd2 {[%clk 0:02:03.6]} 16... fxe4 {[%clk 0:02:27.6]} 17.
Nxe4 {[%clk 0:02:05.5]} 17... Qf5 {[%clk 0:02:26.8]} 18. c4 {[%clk 0:01:42.6]}
18... Qxe4 {[%clk 0:02:24.8]} 19. Re1 {[%clk 0:01:43]} 19... Qxc4 {[%clk
0:02:23]} 20. Rxe7 {[%clk 0:01:43.4]} 20... Rae8 {[%clk 0:01:59.8]} 21. Rc1
{[%clk 0:01:43.5]} 21... Qxa2 {[%clk 0:01:45.7]} 22. Rcxc7 {[%clk 0:01:32.6]}
22... Rxe7 {[%clk 0:01:42.9]} 23. Rxe7 {[%clk 0:01:34.5]} 23... Qxb2 {[%clk
0:01:30.5]} 24. Qd3 {[%clk 0:00:38.9]} 24... Rc8 {[%clk 0:00:50.7]} 25. Qe4
{[%clk 0:00:34.5]} 25... Rf8 {[%clk 0:00:17.5]} 26. Qe6+ {[%clk 0:00:28.3]}
26... Kh8 {[%clk 0:00:18.1]} 27. Qxd6 {[%clk 0:00:25.4]} 27... a5 {[%clk
0:00:09.1]} 28. Qd7 {[%clk 0:00:14.5]} 28... a4 {[%clk 0:00:06.1]} 29. Qxa4
{[%clk 0:00:13.6]} 29... Qc1+ {[%clk 0:00:03.8]} 30. Kh2 {[%clk 0:00:11.2]}
30... Qf1 {[%clk 0:00:04.9]} 31. Qc2 {[%clk 0:00:09.2]} 31... b5 {[%clk
0:00:03.8]} 32. d6 {[%clk 0:00:10.2]} 32... b4 {[%clk 0:00:03.9]} 33. d7 {[%clk
0:00:11.5]} 33... b3 {[%clk 0:00:05.4]} 34. Qxb3 {[%clk 0:00:11.6]} 34... Qxf2
{[%clk 0:00:06.7]} 35. Re8 {[%clk 0:00:12.8]} 35... Qg3+ {[%clk 0:00:07.6]} 36.
Kh1 {[%clk 0:00:11.9]} 1-0

[Event "*** Qualifier 1: Titled Tuesday 3|2 Blitz"]
[Site "Chess.com"]
[Date "2017.04.04"]
[Round "5"]
[White "Zlatan56"]
[Black "Bigfish1995"]
[Result "0-1"]
[WhiteElo "2642"]
[BlackElo "2659"]
[TimeControl "180+2"]
[EndTime "14:12:55 PDT"]
[Termination "Bigfish1995 won on time"]

1. Nf3 {[%clk 0:03:02]} 1... c5 {[%clk 0:02:55.3]} 2. c4 {[%clk 0:03:01.1]} 2...
Nc6 {[%clk 0:02:55.3]} 3. d4 {[%clk 0:03:01.2]} 3... cxd4 {[%clk 0:02:56]} 4.
Nxd4 {[%clk 0:03:03.1]} 4... Nf6 {[%clk 0:02:57.7]} 5. g3 {[%clk 0:03:03.9]}
5... e5 {[%clk 0:02:57.6]} 6. Nb5 {[%clk 0:03:04.5]} 6... Bb4+ {[%clk 0:02:58]}
7. Bd2 {[%clk 0:03:04.6]} 7... a6 {[%clk 0:02:57.1]} 8. Bxb4 {[%clk 0:03:01.2]}
8... axb5 {[%clk 0:02:57.9]} 9. Bd6 {[%clk 0:03:01.5]} 9... Qa5+ {[%clk
0:02:40.5]} 10. Nd2 {[%clk 0:03:00.9]} 10... Ne4 {[%clk 0:02:35.2]} 11. c5
{[%clk 0:03:01.7]} 11... Nxd6 {[%clk 0:02:31]} 12. cxd6 {[%clk 0:03:02.2]} 12...
Qb4 {[%clk 0:02:31]} 13. Bg2 {[%clk 0:03:02.7]} 13... Qxd6 {[%clk 0:02:29.4]}
14. O-O {[%clk 0:03:03.1]} 14... O-O {[%clk 0:02:23.7]} 15. Ne4 {[%clk
0:03:01.7]} 15... Qb4 {[%clk 0:02:19.7]} 16. Qd2 {[%clk 0:01:52.5]} 16... d5
{[%clk 0:02:13.1]} 17. Qxb4 {[%clk 0:01:37.1]} 17... Nxb4 {[%clk 0:02:14]} 18.
Nd6 {[%clk 0:01:29.2]} 18... Rd8 {[%clk 0:01:49.2]} 19. Nxb5 {[%clk 0:01:27.4]}
19... Ra5 {[%clk 0:01:48.1]} 20. a4 {[%clk 0:01:18.7]} 20... Bd7 {[%clk
0:01:46.2]} 21. Nc3 {[%clk 0:01:18]} 21... d4 {[%clk 0:01:37.2]} 22. Ne4 {[%clk
0:01:16]} 22... Nc2 {[%clk 0:01:23.6]} 23. Rac1 {[%clk 0:00:59.2]} 23... Bxa4
{[%clk 0:01:22.2]} 24. Nd2 {[%clk 0:00:59.8]} 24... Nb4 {[%clk 0:01:11.9]} 25.
Bxb7 {[%clk 0:00:54.4]} 25... Ra7 {[%clk 0:01:07]} 26. Bf3 {[%clk 0:00:44.5]}
26... f5 {[%clk 0:01:05.5]} 27. Rc4 {[%clk 0:00:44.4]} 27... Rb8 {[%clk
0:01:03.2]} 28. g4 {[%clk 0:00:37.7]} 28... Bd7 {[%clk 0:00:57.5]} 29. gxf5
{[%clk 0:00:34.1]} 29... Bxf5 {[%clk 0:00:58.3]} 30. Be4 {[%clk 0:00:35]} 30...
Bxe4 {[%clk 0:00:54.5]} 31. Nxe4 {[%clk 0:00:36.4]} 31... Nd5 {[%clk 0:00:55.8]}
32. Rc5 {[%clk 0:00:27.6]} 32... Rd7 {[%clk 0:00:56.7]} 33. Rfc1 {[%clk
0:00:12]} 33... Rdd8 {[%clk 0:00:46]} 34. R1c2 {[%clk 0:00:10.9]} 34... h6
{[%clk 0:00:42.8]} 35. Nd2 {[%clk 0:00:10]} 35... Ra8 {[%clk 0:00:35.6]} 36. Nf3
{[%clk 0:00:06.2]} 36... Nf4 {[%clk 0:00:36.4]} 37. h4 {[%clk 0:00:04]} 37... e4
{[%clk 0:00:36]} 38. Nxd4 {[%clk 0:00:02.9]} 38... Rxd4 {[%clk 0:00:35.3]} 39.
e3 {[%clk 0:00:03.6]} 39... Rd1+ {[%clk 0:00:33.4]} 40. Kh2 {[%clk 0:00:05.5]}
40... Nd3 {[%clk 0:00:34]} 41. Rc7 {[%clk 0:00:06]} 41... Rf8 {[%clk 0:00:32.3]}
0-1

[Event "*** Qualifier 1: Titled Tuesday 3|2 Blitz"]
[Site "Chess.com"]
[Date "2017.04.04"]
[Round "5"]
[White "RichardLeyvaP"]
[Black "GMHess"]
[Result "1-0"]
[WhiteElo "2384"]
[BlackElo "2588"]
[TimeControl "180+2"]
[EndTime "14:13:04 PDT"]
[Termination "RichardLeyvaP won by resignation"]

1. e4 {[%clk 0:03:02]} 1... e5 {[%clk 0:02:32.2]} 2. Nf3 {[%clk 0:02:59.1]} 2...
Nc6 {[%clk 0:02:33.2]} 3. Bb5 {[%clk 0:02:59.9]} 3... a6 {[%clk 0:02:34.1]} 4.
Bxc6 {[%clk 0:03:01]} 4... dxc6 {[%clk 0:02:35.1]} 5. Nc3 {[%clk 0:03:02.9]}
5... Qd6 {[%clk 0:02:34.5]} 6. d4 {[%clk 0:03:03.1]} 6... exd4 {[%clk
0:02:35.3]} 7. Qxd4 {[%clk 0:03:04.3]} 7... Bd7 {[%clk 0:02:26.1]} 8. Be3 {[%clk
0:03:00.7]} 8... Qxd4 {[%clk 0:02:05.9]} 9. Nxd4 {[%clk 0:03:00.9]} 9... O-O-O
{[%clk 0:02:05.4]} 10. O-O-O {[%clk 0:03:00.5]} 10... Nf6 {[%clk 0:02:02.7]} 11.
f3 {[%clk 0:03:00.9]} 11... Bd6 {[%clk 0:01:59.9]} 12. Kb1 {[%clk 0:02:49.6]}
12... h6 {[%clk 0:01:54.3]} 13. Nb3 {[%clk 0:02:49.5]} 13... Rhe8 {[%clk
0:01:47.7]} 14. Nc5 {[%clk 0:02:47.3]} 14... Be5 {[%clk 0:01:29.1]} 15. Ne2
{[%clk 0:02:43.1]} 15... b6 {[%clk 0:01:12.1]} 16. Nxd7 {[%clk 0:02:35.9]} 16...
Nxd7 {[%clk 0:01:13]} 17. Bf4 {[%clk 0:02:30.5]} 17... Bf6 {[%clk 0:00:52.7]}
18. Ng3 {[%clk 0:02:26.9]} 18... Be7 {[%clk 0:00:40.4]} 19. Nf5 {[%clk
0:02:23.2]} 19... Bf8 {[%clk 0:00:41.6]} 20. c4 {[%clk 0:02:13.6]} 20... Nc5
{[%clk 0:00:41]} 21. Kc2 {[%clk 0:02:09.9]} 21... Ne6 {[%clk 0:00:42.1]} 22. Be3
{[%clk 0:02:05.1]} 22... c5 {[%clk 0:00:39.2]} 23. Rd5 {[%clk 0:01:59.5]} 23...
c6 {[%clk 0:00:38.6]} 24. Rxd8+ {[%clk 0:02:00.5]} 24... Rxd8 {[%clk 0:00:40.5]}
25. Rd1 {[%clk 0:01:59.7]} 25... Rxd1 {[%clk 0:00:38.4]} 26. Kxd1 {[%clk
0:02:01.6]} 26... h5 {[%clk 0:00:36.8]} 27. Kd2 {[%clk 0:01:40.2]} 27... Kd7
{[%clk 0:00:37.2]} 28. f4 {[%clk 0:01:24.7]} 28... g6 {[%clk 0:00:28.7]} 29. Ng3
{[%clk 0:01:25.9]} 29... Bg7 {[%clk 0:00:29.4]} 30. b3 {[%clk 0:01:25.9]} 30...
Kd6 {[%clk 0:00:17.9]} 31. Kd3 {[%clk 0:01:18.4]} 31... f6 {[%clk 0:00:13.2]}
32. f5 {[%clk 0:01:14.9]} 32... h4 {[%clk 0:00:11.5]} 33. Ne2 {[%clk 0:01:05.8]}
33... Nf8 {[%clk 0:00:12.6]} 34. Bf4+ {[%clk 0:01:05.1]} 34... Kd7 {[%clk
0:00:12.2]} 35. g4 {[%clk 0:01:02]} 35... g5 {[%clk 0:00:08.7]} 36. Bb8 {[%clk
0:00:50.1]} 36... Kc8 {[%clk 0:00:06.1]} 37. Bd6 {[%clk 0:00:50.2]} 37... Nd7
{[%clk 0:00:04.3]} 38. h3 {[%clk 0:00:50.9]} 38... Bf8 {[%clk 0:00:04.5]} 39.
Bh2 {[%clk 0:00:51.6]} 39... b5 {[%clk 0:00:04.4]} 40. Ng1 {[%clk 0:00:52]}
40... a5 {[%clk 0:00:04.3]} 41. Nf3 {[%clk 0:00:52.2]} 41... a4 {[%clk
0:00:03.6]} 42. e5 {[%clk 0:00:53]} 42... fxe5 {[%clk 0:00:04.6]} 43. Nxe5
{[%clk 0:00:54.1]} 43... Nxe5+ {[%clk 0:00:04.7]} 44. Bxe5 {[%clk 0:00:55]}
44... Kd7 {[%clk 0:00:05.2]} 45. Bf6 {[%clk 0:00:55.4]} 45... Bh6 {[%clk
0:00:05.8]} 46. bxa4 {[%clk 0:00:51.2]} 46... bxa4 {[%clk 0:00:07.2]} 47. Kc2
{[%clk 0:00:52.2]} 47... Ke8 {[%clk 0:00:07.3]} 48. Kb2 {[%clk 0:00:51.8]} 48...
Kf7 {[%clk 0:00:08.8]} 49. Bd8 {[%clk 0:00:52.8]} 49... Ke8 {[%clk 0:00:09]} 50.
Bb6 {[%clk 0:00:53.4]} 50... Bf8 {[%clk 0:00:09.2]} 51. Bc7 {[%clk 0:00:50]}
51... Kd7 {[%clk 0:00:06.5]} 52. Be5 {[%clk 0:00:51]} 1-0

[Event "*** Qualifier 1: Titled Tuesday 3|2 Blitz"]
[Site "Chess.com"]
[Date "2017.04.04"]
[Round "5"]
[White "Saitama_Hero"]
[Black "MorpheusPro"]
[Result "0-1"]
[WhiteElo "2184"]
[BlackElo "2092"]
[TimeControl "180+2"]
[EndTime "14:13:13 PDT"]
[Termination "MorpheusPro won by checkmate"]

1. d4 {[%clk 0:03:02]} 1... d5 {[%clk 0:02:59.4]} 2. Nf3 {[%clk 0:03:03.7]} 2...
Bf5 {[%clk 0:02:59.4]} 3. c4 {[%clk 0:03:02]} 3... c6 {[%clk 0:02:57.5]} 4. Nc3
{[%clk 0:03:01]} 4... e6 {[%clk 0:02:58]} 5. e3 {[%clk 0:03:00.1]} 5... Nf6
{[%clk 0:02:58.1]} 6. h3 {[%clk 0:02:58.9]} 6... Nbd7 {[%clk 0:02:57.8]} 7. Bd2
{[%clk 0:02:57.4]} 7... Bd6 {[%clk 0:02:57.7]} 8. Nh4 {[%clk 0:02:52.5]} 8...
Bg6 {[%clk 0:02:57.8]} 9. Nxg6 {[%clk 0:02:51.8]} 9... hxg6 {[%clk 0:02:58.1]}
10. cxd5 {[%clk 0:02:49.5]} 10... exd5 {[%clk 0:02:58]} 11. Rc1 {[%clk
0:02:49.4]} 11... O-O {[%clk 0:02:53.4]} 12. Bd3 {[%clk 0:02:48.6]} 12... Re8
{[%clk 0:02:53.1]} 13. O-O {[%clk 0:02:47.4]} 13... Rc8 {[%clk 0:02:51.5]} 14.
a3 {[%clk 0:02:46.7]} 14... Bb8 {[%clk 0:02:51.2]} 15. b4 {[%clk 0:02:46.4]}
15... Qe7 {[%clk 0:02:39.3]} 16. Qb3 {[%clk 0:02:45.2]} 16... g5 {[%clk
0:02:32.3]} 17. Rfe1 {[%clk 0:02:18.8]} 17... g4 {[%clk 0:02:30.8]} 18. e4
{[%clk 0:02:17.7]} 18... gxh3 {[%clk 0:02:30.1]} 19. Bg5 {[%clk 0:01:57.8]}
19... Qe6 {[%clk 0:02:15]} 20. e5 {[%clk 0:01:50.7]} 20... Qg4 {[%clk
0:02:11.7]} 21. g3 {[%clk 0:01:44.3]} 21... Qxg5 {[%clk 0:01:14.1]} 22. exf6
{[%clk 0:01:44.1]} 22... Nxf6 {[%clk 0:01:12.1]} 23. Ne2 {[%clk 0:01:36.6]}
23... Ne4 {[%clk 0:01:00.7]} 24. Bxe4 {[%clk 0:01:32.2]} 24... Rxe4 {[%clk
0:01:00.8]} 25. b5 {[%clk 0:01:29.7]} 25... Rxe2 {[%clk 0:00:56.6]} 26. Rxe2
{[%clk 0:01:24.2]} 26... Qxc1+ {[%clk 0:00:56.1]} 27. Kh2 {[%clk 0:01:26.1]}
27... Qf1 {[%clk 0:00:53.2]} 28. Qf3 {[%clk 0:01:23.6]} 28... cxb5 {[%clk
0:00:50.2]} 29. Re7 {[%clk 0:01:21.2]} 29... Rf8 {[%clk 0:00:50.2]} 30. Rxb7
{[%clk 0:01:15.6]} 30... Bd6 {[%clk 0:00:12.3]} 31. Rxa7 {[%clk 0:01:14.6]}
31... Bb8 {[%clk 0:00:08.3]} 32. Rb7 {[%clk 0:01:13.4]} 32... Bd6 {[%clk
0:00:09]} 33. Ra7 {[%clk 0:00:54.3]} 33... Bb8 {[%clk 0:00:07]} 34. Rd7 {[%clk
0:00:46]} 34... g6 {[%clk 0:00:07.8]} 35. Rxd5 {[%clk 0:00:40.3]} 35... Bc7
{[%clk 0:00:08.5]} 36. Rd7 {[%clk 0:00:40.1]} 36... Ba5 {[%clk 0:00:09.2]} 37.
d5 {[%clk 0:00:38.3]} 37... Be1 {[%clk 0:00:09.7]} 38. Rb7 {[%clk 0:00:32.8]}
38... Bxf2 {[%clk 0:00:10.4]} 39. d6 {[%clk 0:00:29.7]} 39... Bg1+ {[%clk
0:00:10]} 40. Kh1 {[%clk 0:00:30]} 40... Qxf3+ {[%clk 0:00:11.1]} 41. Kxg1
{[%clk 0:00:31.9]} 41... Qg2# {[%clk 0:00:12.4]} 0-1

[Event "*** Qualifier 1: Titled Tuesday 3|2 Blitz"]
[Site "Chess.com"]
[Date "2017.04.04"]
[Round "5"]
[White "Alex_Molchanov"]
[Black "Sethu0025"]
[Result "1-0"]
[WhiteElo "2365"]
[BlackElo "2582"]
[TimeControl "180+2"]
[EndTime "14:13:17 PDT"]
[Termination "Alex_Molchanov won by resignation"]

1. d4 {[%clk 0:03:02]} 1... g6 {[%clk 0:03:02]} 2. c4 {[%clk 0:03:02.8]} 2...
Bg7 {[%clk 0:03:02.4]} 3. Nc3 {[%clk 0:03:04.3]} 3... Nf6 {[%clk 0:03:01.2]} 4.
e4 {[%clk 0:03:03.7]} 4... O-O {[%clk 0:03:02.6]} 5. Be3 {[%clk 0:03:03.1]} 5...
c6 {[%clk 0:03:03.2]} 6. h3 {[%clk 0:03:01.2]} 6... d5 {[%clk 0:03:03.5]} 7. e5
{[%clk 0:03:02.1]} 7... Ne8 {[%clk 0:03:03.2]} 8. f4 {[%clk 0:02:53.5]} 8... Na6
{[%clk 0:03:00.8]} 9. Nf3 {[%clk 0:02:53.6]} 9... Nac7 {[%clk 0:03:01.8]} 10. c5
{[%clk 0:02:45.9]} 10... b6 {[%clk 0:03:01.8]} 11. b4 {[%clk 0:02:45.9]} 11...
f6 {[%clk 0:03:00.5]} 12. Bd3 {[%clk 0:02:20.8]} 12... fxe5 {[%clk 0:02:59.8]}
13. fxe5 {[%clk 0:02:11.5]} 13... Bf5 {[%clk 0:03:00.7]} 14. O-O {[%clk
0:02:04.6]} 14... Bxd3 {[%clk 0:02:58.8]} 15. Qxd3 {[%clk 0:02:05.2]} 15... Ne6
{[%clk 0:02:59.2]} 16. Ng5 {[%clk 0:01:50.6]} 16... N8c7 {[%clk 0:02:59]} 17.
Ne2 {[%clk 0:01:36.8]} 17... Nxg5 {[%clk 0:02:55.7]} 18. Bxg5 {[%clk 0:01:37.2]}
18... Ne6 {[%clk 0:02:57.6]} 19. Bd2 {[%clk 0:01:36.5]} 19... bxc5 {[%clk
0:02:52.4]} 20. bxc5 {[%clk 0:01:35.7]} 20... Qd7 {[%clk 0:02:51.9]} 21. Rxf8+
{[%clk 0:01:26.6]} 21... Rxf8 {[%clk 0:02:51.6]} 22. Rb1 {[%clk 0:01:27.3]}
22... g5 {[%clk 0:02:45]} 23. Rf1 {[%clk 0:01:20.2]} 23... Rxf1+ {[%clk
0:02:40.9]} 24. Kxf1 {[%clk 0:01:20.5]} 24... h6 {[%clk 0:02:42.3]} 25. Qg6
{[%clk 0:01:13.9]} 25... Nf8 {[%clk 0:02:41]} 26. Qd3 {[%clk 0:01:13.8]} 26...
Qb7 {[%clk 0:02:41.5]} 27. Bc3 {[%clk 0:00:44.5]} 27... Ne6 {[%clk 0:02:39.7]}
28. Kf2 {[%clk 0:00:45.6]} 28... Qc8 {[%clk 0:02:39.4]} 29. Qf5 {[%clk
0:00:41.1]} 29... Qd7 {[%clk 0:02:38.4]} 30. g4 {[%clk 0:00:41.9]} 30... Nf8
{[%clk 0:02:31.6]} 31. Qd3 {[%clk 0:00:37.3]} 31... Qc8 {[%clk 0:02:30.4]} 32.
Ng3 {[%clk 0:00:37]} 32... e6 {[%clk 0:02:31.6]} 33. Nh5 {[%clk 0:00:37.2]}
33... Bh8 {[%clk 0:02:29.2]} 34. Kg3 {[%clk 0:00:36.1]} 34... Qe8 {[%clk
0:02:22.3]} 35. h4 {[%clk 0:00:31.4]} 35... gxh4+ {[%clk 0:02:20.1]} 36. Kxh4
{[%clk 0:00:32.3]} 36... Qe7+ {[%clk 0:02:21.1]} 37. Kg3 {[%clk 0:00:33]} 37...
Qg5 {[%clk 0:02:21.4]} 38. Bd2 {[%clk 0:00:33.7]} 38... Qe7 {[%clk 0:02:12.4]}
39. Bxh6 {[%clk 0:00:33.8]} 39... Qf7 {[%clk 0:02:12.2]} 40. Bxf8 {[%clk
0:00:32.9]} 40... Kxf8 {[%clk 0:01:58.4]} 41. Nf4 {[%clk 0:00:28.4]} 41... Ke8
{[%clk 0:01:58]} 42. Qa6 {[%clk 0:00:21.6]} 42... Qd7 {[%clk 0:01:58]} 43. Qd3
{[%clk 0:00:20.5]} 43... Qf7 {[%clk 0:01:56.8]} 44. g5 {[%clk 0:00:21.3]} 44...
Bg7 {[%clk 0:01:56.3]} 45. Kg4 {[%clk 0:00:22.6]} 45... Bf8 {[%clk 0:01:52.9]}
46. Qg6 {[%clk 0:00:15.2]} 46... Qxg6 {[%clk 0:01:45.1]} 47. Nxg6 {[%clk
0:00:15.9]} 47... Bg7 {[%clk 0:01:46.4]} 48. Nf4 {[%clk 0:00:15.4]} 48... Kf7
{[%clk 0:01:47.4]} 49. g6+ {[%clk 0:00:15.5]} 49... Ke7 {[%clk 0:01:41.9]} 50.
Kg5 {[%clk 0:00:16.8]} 50... a6 {[%clk 0:01:36.1]} 51. a3 {[%clk 0:00:17.5]}
51... a5 {[%clk 0:01:32.7]} 52. a4 {[%clk 0:00:18.7]} 52... Bh8 {[%clk
0:01:32.9]} 53. Kh6 {[%clk 0:00:19.7]} 53... Kf8 {[%clk 0:00:53.3]} 54. Kh7
{[%clk 0:00:18.8]} 1-0